Cogmind - Beta 10.2 @@@ ROGUE MODE // 2021.05.22 @ 00:32:29 Player: onyhow Result: Destroyed by D-53 Grenadier with Mini Grenade Launcher Performance ------------- Evolutions (0) 0 Regions Visited (2) 400 Robots Destroyed (17) 85 Value Destroyed (450) 450 Prototype IDs (2) 40 Alien Tech Used (0) 0 Bonus (0) 0 TOTAL SCORE: 975 Bonus ------- None Cogmind --------- Core Integrity 0/250 Matter 149/300 Energy 265/265 System Corruption 1% Temperature Cool (0) Movement Treading (160) Location -10/Mines Parts ------- > --- POWER (1) -------- Improved Ion Engine > --- PROPULSION (2) --- Light Treads > --- UTILITY (2) ------ Small Storage Unit > --- WEAPON (2) ------- (None) > --- INVENTORY (6) ---- Improved Ion Engine Improved Ion Engine Beam Cannon Heavy Assault Rifle Heavy Assault Rifle Mini Grenade Launcher Peak State ------------ > --- POWER ------------ Improved Ion Engine > --- PROPULSION ------- Light Treads Light Treads > --- UTILITY ---------- Small Storage Unit High-capacity Storage Unit > --- WEAPON ----------- Assault Rifle Mini Grenade Launcher > --- INVENTORY -------- Improved Ion Engine Improved Ion Engine Light Treads Beam Cannon Beam Cannon Assault Rifle Heavy Assault Rifle Heavy Assault Rifle Heavy Assault Rifle Heavy Assault Rifle Mini Grenade Launcher Mini Grenade Launcher [Rating: 11] Favorites ----------- Power Improved Ion Engine Engine Improved Ion Engine Propulsion Aluminum Leg Treads Light Treads Leg Aluminum Leg Utility Small Storage Unit Storage Small Storage Unit Weapon Assault Rifle Energy Gun Small Laser Ballistic Gun Assault Rifle Launcher Mini Grenade Launcher Build | -11 -10 -10 ------- Run | Scr Mat Min Slots Evolved . | . . . Power . | . . . Propulsion . | . . . Utility . | . . . Weapon . | . . . Parts Attached 20 | 7 12 1 Power 4 | 1 3 . Engine 4 | 1 3 . Core . | . . . Reactor . | . . . Propulsion 6 | 2 3 1 Treads 3 | . 2 1 Leg 3 | 2 1 . Wheel . | . . . Hover . | . . . Flight . | . . . Utility 3 | 2 1 . Device . | . . . Storage 3 | 2 1 . Processor . | . . . Hackware . | . . . Protection . | . . . Artifact . | . . . Weapon 7 | 2 5 . Energy Gun 1 | . 1 . Energy Cannon . | . . . Ballistic Gun 5 | 2 3 . Ballistic Cannon . | . . . Launcher 1 | . 1 . Special Weapon . | . . . Impact Weapon . | . . . Slashing Weapon . | . . . Piercing Weapon . | . . . Special Melee Weapon . | . . . Unidentified Prototypes . | . . . Parts Lost 6 | . 3 3 Power . | . . . Propulsion 3 | . 2 1 Utility . | . . . Weapon 3 | . 1 2 Highest Loss Streak 3 | . 3 3 Average Slot Usage (%) 98 | . 99 98 Engine 13 | . 13 14 Treads 10 | . 4 27 Leg 16 | . 23 . Storage 27 | . 28 27 Ballistic Gun 22 | . 25 13 Launcher 5 | . 2 13 Naked Turns . | . . . Heaviest Build 47 | 16 47 46 Greatest Support 40 | 20 40 40 Greatest Overweight (x) 3 | 3 2 2 Average Overweight (x) . | . . . Largest Inventory Capacity 14 | 8 14 14 Average Capacity 11 | 6 10 13 Most Carried 14 | 5 14 13 Average Carried 9 | 3 9 12 Final Capacity 14 | 8 14 6 Final Carried 11 | 5 11 6 Class Distribution -------------------- 100% | Mutant Dominant Class ---------------- Mutant | -10/Materials Mutant | -10/Mines Resources | -11 -10 -10 ----------- Run | Scr Mat Min Matter Collected 530 | 278 229 23 Remotely . | . . . Salvage Created 512 | 90 346 76 Parts 28 | 4 23 1 Haulers Intercepted . | . . . Recyclers Shooed 3 | . 2 1 Parts Field Recycled . | . . . Retrieved Matter . | . . . Parts Self-Destructed . | . . . Prevented . | . . . Kills | -11 -10 -10 ------- Run | Scr Mat Min Combat Hostiles Destroyed 14 | . 11 3 Guns 9 | . 9 . AOE 5 | . 2 3 Classes Destroyed 6 | 1 4 1 Worker 2 | . 2 . Recycler 1 | 1 . . Mechanic 1 | . 1 . Swarmer 3 | . 3 . Grunt 10 | . 8 2 Assembled 1 | . . 1 Best Kill Streak 4 | 1 4 3 Combat Bots Only 4 | . 4 3 Max Kills in Single Turn 2 | 1 2 2 Gunslinging . | . . . Exploded 2 | . 1 2 Melee . | . . . Uniques/NPCs Destroyed . | . . . Combat | -11 -10 -10 -------- Run | Scr Mat Min Damage Taken 1212 | . 616 596 Core 253 | . 99 154 Absorbed by Shields . | . . . Core Remaining (%) 100 | 100 . . Volleys Fired 52 | 2 47 3 Largest 2 | 2 2 2 Hottest 60 | 40 60 50 Shots Fired 100 | 4 90 6 Gun 92 | 4 85 3 Cannon . | . . . Launcher 8 | . 5 3 Special . | . . . Kinetic 90 | 4 83 3 Thermal 2 | . 2 . Explosive 8 | . 5 3 Electromagnetic . | . . . Robot Hit Streak 8 | 1 8 3 Robot Miss Streak 4 | 2 4 1 Penetration Max . | . . . Secondary Targets 4 | . 4 . Max Gunslinging Chain 1 | . 1 . Shots Hit Robots 55 | 2 49 4 Core Hits 35 | 2 28 5 Critical Hits . | . . . Critical Kills . | . . . Critical Parts Destroyed . | . . . Melee Attacks . | . . . Impact . | . . . Slashing . | . . . Piercing . | . . . Sneak Attacks . | . . . Combat Hostiles . | . . . Follow-up Attacks . | . . . Damage Inflicted 1307 | 22 996 289 Guns 639 | 22 606 11 Cannons . | . . . Explosions 649 | . 390 259 Melee . | . . . Ramming 19 | . . 19 Kinetic 639 | 22 606 11 Thermal 100 | . 100 . Explosive 549 | . 290 259 Electromagnetic . | . . . Impact . | . . . Slashing . | . . . Piercing . | . . . Highest Corruption 1 | . 1 1 Average Corruption 1 | . 1 1 Corruption Purged . | . . . Effects 1 | . . 1 Energy Discharges 1 | . . 1 Overload Shots . | . . . Overflow Damage 62 | . 60 2 Projectiles . | . . . Explosions 62 | . 60 2 Melee . | . . . Knockbacks 1 | . . 1 Impact 1 | . . 1 Kinetic . | . . . Secondary . | . . . Self-Inflicted Damage 47 | . . 47 Shots 2 | . . 2 Rammed 2 | . . 2 Targets Rammed 2 | . . 2 Kicked . | . . . Crushed . | . . . Highest Temperature 36 | . 36 18 Average Temperature 12 | . 12 12 Received Heat Transfer 297 | . 258 39 Siege Activations . | . . . Robots Corrupted . | . . . Combat Hostiles . | . . . Parts Fried . | . . . Impact Corruptions . | . . . Robots Melted . | . . . Combat Hostiles . | . . . Parts Melted . | . . . Heat Transferred 50 | . 50 . Parts Sabotaged . | . . . Parts Stolen . | . . . Parts Stripped . | . . . Power Chain Reactions . | . . . Missiles Intercepted . | . . . Alert | -11 -10 -10 ------- Run | Scr Mat Min Peak Influence 253 | 5 253 96 Initial 31 | . 3 31 Average 66 | 2 86 33 Maximum Alert Level 1 | . 1 . Low Security (%) 94 | 100 91 100 Level 1 5 | . 8 . Level 2 . | . . . Level 3 . | . . . Level 4 . | . . . Level 5 . | . . . High Security . | . . . Max Security . | . . . Squads Dispatched 3 | . 3 . Investigation . | . . . Extermination . | . . . Reinforcement 3 | . 3 . Assault . | . . . Garrison . | . . . Intercept . | . . . Construction Impeded . | . . . Haulers Reinforced . | . . . Stealth | -11 -10 -10 --------- Run | Scr Mat Min Distress Signals 2 | . 2 . Communications Jammed . | . . . Distress Signals . | . . . Times Spotted 41 | . 23 18 Peak Tracking Total 7 | . 4 7 Tactical Retreats 3 | . 2 1 Traps | -11 -10 -10 ------- Run | Scr Mat Min Traps Triggered 3 | . 3 . Indirectly . | . . . Trap Hack Attempts . | . . . Triggered . | . . . Disarmed . | . . . Reprogrammed . | . . . Reused . | . . . Traps Extracted . | . . . Installed . | . . . Triggered . | . . . Machines | -11 -10 -10 ---------- Run | Scr Mat Min Machines Disabled 2 | . 2 . Max in Single Turn 1 | . 1 . Machines Sabotaged . | . . . Garrisons Compromised . | . . . Overloaded Fab Kills . | . . . Fab Network Shutdowns . | . . . Hacking | -11 -10 -10 --------- Run | Scr Mat Min Machines Accessed 5 | . 5 . Terminals 5 | . 5 . Fabricators . | . . . Repair Stations . | . . . Recycling Units . | . . . Scanalyzers . | . . . Garrison Access . | . . . Total Hacks 15 | . 15 . Successful 5 | . 5 . Failed 10 | . 10 . Catastrophic . | . . . Database Lockouts . | . . . Manual 10 | . 10 . Terminals 15 | . 15 . Fabricators . | . . . Repair Stations . | . . . Recycling Units . | . . . Scanalyzers . | . . . Garrison Access . | . . . Terminal Hacks 5 | . 5 . Part Schematic 1 | . 1 . Prototype ID Bank 1 | . 1 . Branch Access Points 1 | . 1 . Alert Level 1 | . 1 . Zone Layout 1 | . 1 . Fabricator Hacks . | . . . Repair Station Hacks . | . . . Recycling Unit Hacks . | . . . Scanalyzer . | . . . Garrison Access Hacks . | . . . Unauthorized Hacks . | . . . Terminals . | . . . Fabricators . | . . . Repair Stations . | . . . Recycling Units . | . . . Scanalyzers . | . . . Garrison Access . | . . . Data Cores Recovered . | . . . Used . | . . . Hacking Detections 5 | . 5 . Full Trace Events 1 | . 1 . Feedback Events . | . . . Feedback Blocked . | . . . Robot Schematics Acquired . | . . . Robots Built . | . . . Matter . | . . . Time . | . . . Total Robot Build Rating . | . . . Part Schematics Acquired 1 | . 1 . Parts Built . | . . . Matter . | . . . Time . | . . . Total Part Build Rating . | . . . Parts Repaired . | . . . Time . | . . . Parts Recycled . | . . . Recycled Matter . | . . . Retrieved Matter . | . . . Retrieved Components . | . . . Parts Scanalyzed . | . . . Part Schematics Acquired . | . . . Parts Damaged . | . . . Bothacking | -11 -10 -10 ------------ Run | Scr Mat Min Used RIF Installer . | . . . Robots Hacked . | . . . Non-combat . | . . . Combat . | . . . Robot Hacks Applied . | . . . Relay Couplers Released . | . . . Robots Rewired . | . . . Allies Hacked . | . . . Hacks Repelled . | . . . Allies | -11 -10 -10 -------- Run | Scr Mat Min Total Allies . | . . . Largest Group . | . . . Highest-Rated Group . | . . . Highest-Rated Ally . | . . . Total Orders . | . . . Ally Attacks . | . . . Total Damage . | . . . Kills . | . . . Allies Corrupted . | . . . Allies Melted . | . . . Intel | -11 -10 -10 ------- Run | Scr Mat Min Robot Analysis Total . | . . . Derelict Logs Recovered . | . . . Drone Launches . | . . . Drone Recoveries . | . . . Exploration | -11 -10 -10 ------------- Run | Scr Mat Min Turns Passed 1365 | 86 914 365 Spaces Moved 773 | 52 527 194 Core 13 | 13 . . Treads 262 | . 68 194 Legs 498 | 39 459 . Wheels . | . . . Hover . | . . . Flight . | . . . Fastest Speed 50 | 50 120 160 Average Speed 148 | 119 140 179 Slowest Speed 200 | 200 180 200 Overloaded Moves . | . . . Propulsion Burnouts . | . . . Robots Hopped . | . . . Cave-ins Triggered . | . . . Exploration Rate (%) 44 | 4 89 41 Regions Visited 2 Branch Regions 1 Pre-discovered Areas . | . . . Known Exits Taken 1 | . 1 . Unknown Exits Taken 1 | 1 . . Scrap Searched 1 | . . 1 Spaces Dug 10 | . 10 . Terrain Destroyed 84 | . 37 47 Melee . | . . . Projectile . | . . . AOE 84 | . 37 47 Terrain Rammed . | . . . Walls Destroyed . | . . . Machines Disabled . | . . . Actions | -11 -10 -10 --------- Run | Scr Mat Min Total 892 | 72 617 203 Wait . | . . . Move 771 | 51 526 194 Hop . | . . . Pick Up 36 | 12 22 2 Fast Attach . | . . . Attach 14 | 7 6 1 Detach . | . . . Swap 6 | . 6 . Drop 11 | . 10 1 Fire 52 | 2 47 3 Melee . | . . . Ram . | . . . Kick . | . . . Crush 2 | . . 2 Escape Stasis . | . . . Rewire . | . . . Trap . | . . . Miscellaneous . | . . . Route ------- -11/Scrapyard -10/Materials (discovered 5 exits: [*Mat x3] / *Min x2) -10/Mines History --------- Turn | Location | Event 28 | -11/Scrapyard | Discovered new exit (range 15) 87 | -11/Scrapyard | Entered Materials 112 | -10/Materials | Identified exit to Mines 309 | -10/Materials | Build established: Mutant 357 | -10/Materials | Discovered new exit (range 10) 568 | -10/Materials | Discovered new exit (range 7) 688 | -10/Materials | Discovered new exit (range 15) 897 | -10/Materials | Lost 3 parts (2n1w) 1001 | -10/Materials | Entered Mines 1301 | -10/Mines | Assembled infested the area 1306 | -10/Mines | Assisted by a Guerilla fighting off Assembled 1341 | -10/Mines | Core integrity fell below 50% 1358 | -10/Mines | Core integrity fell below 20% 1366 | -10/Mines | Destroyed by D-53 Grenadier with Mini Grenade Launcher Last Messages --------------- 01348_ G-34 Mercenary destroyed. 01349_ The unstable cave ceiling collapses. 01350_ as-21374 destroyed. 01350_ as-19770 destroyed. 01350_ as-72339 destroyed. 01350_ Lgt. Treads severed. 01353_ The unstable cave ceiling collapses. 01353_ Lgt. Treads destroyed. 01353_ Assault Rifle destroyed. 01353_ Mni. Grenade Launcher destroyed. 01353_ as-70293 destroyed. 01354_ The unstable cave ceiling collapses. 01356_ Dropped Hcp. Storage Unit. 01358_ as-37656 destroyed. 01359_ The unstable cave ceiling collapses. 01360_ as-08845 destroyed. 01362_ as-96057 destroyed. 01364_ The unstable cave ceiling collapses. 01364_ as-14307 destroyed. 01365_ The unstable cave ceiling collapses. Map ----- +----------------------------------------------------+ | ?????????????????????????????????????????????????? | | ?????????????????????????????????????????????????? | | ?????????????????????????????????????????????????? | | ?????????????????????????????????????????????????? | | ?????????????????????????????????????????????????? | | ?????????????????????????????????????????????????? | | ?????????????????????????????????????????????????? | | ???????????? ##??????????????????????????????????? | | ???????????? #??????????????????????????????????? | | ???????????? ?????????# ???????????????????????? | | ???????????? ????????? ??????????????????????? | | ???????????? ????????? ??????????????????????? | | ???????????? ????????? #??????????????????????? | | ???????????? ?????????? ##?????????????????????? | | ??????????## ?????????? #?????????????????????? | | ?????????? ?????????? ??????????????????????? | | ?????????? ?????????? ??????????????????????? | | ??????????# #??????????# ???????????????????????? | | ??????????# #??????????# #???????????????????????? | | ??????????# #????##?#### #???????????????????????? | | ??????????# #???## ## ###?????????????????????? | | ??????????# #?### #??????? #????????????? | | ??????????# #?# # t #???? #????????????? | | ????????? % # [ = ### #????????????? | | ????????? ]![ #?????????????? | | ????????? % [ @ #??????????????? | | ????????? ##??????????????? | | ?????????# % # # #???????????????? | | ?????????# ### #???????????????? | | ?????????# d ##??## ?????????????? | | ?????????# d #?????# k ???????????? | | ?????????# #??????# #######??????????? | | ?????????### ### #???????###????????????????? | | ???????????###???# #?????????????????????????? | | ###??????????????# ##??????????#?????????????? | | # ##????????????# ##???????? #?????????????? | | #????????###### ##??????? #?????????????? | | #???###### ## #?????? #?????????????? | | #???# = ## %##????# ##????????????? | | # #???# ! ## ##### ##???????????? | | ?# ##### #### ##? ### ???????? | | ??# #??## """ #### ??????? | | ??# ######???# """ #??????? | | ??# #???###??# """ ## #??????? | | ??# ##?# ##?# ### #???# ????????? | | ??# ## #?## ##?# #??????##?????????? | | ??# #???## ##??## #?????????????????? | | ?## ##???# ##???## ##????????????????? | | ## ##??# #???## ##???????????????? | | # ##?# #??## #???????????????? | +----------------------------------------------------+ Best States ------------- Heat Dissipation 25 Energy Generation 12 Energy Capacity 265 Matter Stores 300 Matter Capacity 300 Sight Range 16 Terrain Scan Density 10 Evasion (%) 40 Recoil Reduction 2 Item Schematics ----------------- Med. Storage Unit | -10/Materials | Hacked Robot Schematics ------------------ None Fabricated ------------ Nothing Alien Tech Used ----------------- None Achievements -------------- None Challenges ------------ None Game ------ Seed RefineryImprinterFlail Manual? 0 Play Time 00:11:43 Cumulative 85.1 hours Start 2021.05.22 @ 00:20:15 End 2021.05.22 @ 00:32:29 Sessions 1 Manual Loads 0 Difficulty Rogue Special Mode None Game No. 58 Rogue 58 Adventurer 0 Explorer 0 Win Type - Total 0 Types 0/0/0/0/0/0/0/0/0 Lore% 25 Gallery% 45 Achievement% 31 Wizard Run 0 Options --------- ASCII 0 Keyboard 0 Movement Mouse Keybinds 0 Fullscreen 2 Font 18/SmallcapsGlow Map View 76x50 Tactical HUD 1 Map Filters NONE Filters NONE Steam 1 RUN: bcf3c654-0b28-4d1e-8438-efadbef35b03